[Event "Berliner Meisterschaft 2023"]
[Site "Berlin"]
[Date "2023.04.16"]
[Round "9.2"]
[White "Bruedigam, Martin"]
[Black "Schmidek, Emil"]
[Result "0-1"]
[TimeControl "90 minutes / 40 moves + 30 minutes + 30 seconds"]
[WhiteTitle "IM"]
[BlackTitle "IM"]
[WhiteFideId "24608033"]
[BlackFideId "12908150"]
[WhiteElo "2378"]
[BlackElo "2433"]

1. d4 {[%clk 01:30:55]} {[%emt 00:00:04]} d5 {[%clk 01:30:55]} {[%emt
00:00:06]} 2. c4 {[%clk 01:31:19]} {[%emt 00:00:06]} e6 {[%clk 01:31:21]}
{[%emt 00:00:05]} 3. Nc3 {[%clk 01:31:42]} {[%emt 00:00:06]} a6 {[%clk
01:31:48]} {[%emt 00:00:04]} 4. cxd5 {[%clk 01:32:03]} {[%emt 00:00:09]} exd5
{[%clk 01:32:13]} {[%emt 00:00:05]} 5. Nf3 {[%clk 01:32:24]} {[%emt 00:00:08]}
Nf6 {[%clk 01:32:37]} {[%emt 00:00:06]} 6. Bg5 {[%clk 01:32:34]} {[%emt
00:00:20]} Be6 {[%clk 01:32:49]} {[%emt 00:00:18]} 7. Bxf6 {[%clk 01:32:48]}
{[%emt 00:00:16]} Qxf6 {[%clk 01:33:10]} {[%emt 00:00:09]} 8. Qb3 {[%clk
01:33:07]} {[%emt 00:00:12]} Ra7 {[%clk 01:33:32]} {[%emt 00:00:07]} 9. g3
{[%clk 01:33:28]} {[%emt 00:00:09]} Qd8 {[%clk 01:30:37]} {[%emt 00:03:26]} 10.
h4 {[%clk 01:33:41]} {[%emt 00:00:16]} h6 {[%clk 01:24:18]} {[%emt 00:06:49]}
11. Bh3 {[%clk 01:33:50]} {[%emt 00:00:22]} Bd6 {[%clk 00:57:26]} {[%emt
00:27:21]} 12. Kf1 {[%clk 01:30:53]} {[%emt 00:03:26]} O-O {[%clk 00:40:29]}
{[%emt 00:17:28]} 13. Kg2 {[%clk 01:15:32]} {[%emt 00:15:51]} b5 {[%clk
00:38:58]} {[%emt 00:02:02]} 14. Rae1 {[%clk 01:13:18]} {[%emt 00:02:43]} c6
{[%clk 00:35:40]} {[%emt 00:03:49]} 15. e4 {[%clk 01:08:46]} {[%emt 00:05:01]}
dxe4 {[%clk 00:35:21]} {[%emt 00:00:49]} 16. Bxe6 {[%clk 01:05:58]} {[%emt
00:03:18]} exf3+ {[%clk 00:35:38]} {[%emt 00:00:13]} 17. Kg1 {[%clk 01:06:02]}
{[%emt 00:00:26]} fxe6 {[%clk 00:34:22]} {[%emt 00:01:46]} 18. Rxe6 {[%clk
01:06:26]} {[%emt 00:00:05]} Kh8 {[%clk 00:34:01]} {[%emt 00:00:51]} 19. Ne4
{[%clk 01:06:53]} {[%emt 00:00:04]} Rd7 {[%clk 00:24:50]} {[%emt 00:09:41]} 20.
Ng5 {[%clk 01:07:07]} {[%emt 00:00:15]} Rf6 {[%clk 00:19:25]} {[%emt 00:05:55]}
21. Qd3 {[%clk 01:04:32]} {[%emt 00:03:05]} g6 {[%clk 00:09:36]} {[%emt
00:10:19]} 22. Qe3 {[%clk 01:04:21]} {[%emt 00:00:41]} Rxe6 {[%clk 00:05:14]}
{[%emt 00:04:53]} 23. Nxe6 {[%clk 01:04:46]} {[%emt 00:00:05]} Qf6 {[%clk
00:05:04]} {[%emt 00:00:39]} 24. Qxh6+ {[%clk 01:04:16]} {[%emt 00:01:00]} Rh7
{[%clk 00:05:25]} {[%emt 00:00:09]} 25. Qe3 {[%clk 01:04:42]} {[%emt 00:00:03]}
Re7 {[%clk 00:05:23]} {[%emt 00:00:33]} 26. Qh6+ {[%clk 01:04:57]} {[%emt
00:00:15]} Rh7 {[%clk 00:05:39]} {[%emt 00:00:13]} 27. Qe3 {[%clk 01:05:22]}
{[%emt 00:00:05]} Re7 {[%clk 00:06:00]} {[%emt 00:00:10]} 28. Qh6+ {[%clk
01:05:33]} {[%emt 00:00:19]} Kg8 {[%clk 00:06:18]} {[%emt 00:00:12]} 29. Ng5
{[%clk 01:05:23]} {[%emt 00:00:40]} Re1+ {[%clk 00:02:08]} {[%emt 00:04:40]} 30.
Kh2 {[%clk 01:05:49]} {[%emt 00:00:03]} Rxh1+ {[%clk 00:02:33]} {[%emt
00:00:04]} 31. Kxh1 {[%clk 01:06:17]} {[%emt 00:00:03]} Qg7 {[%clk 00:02:57]}
{[%emt 00:00:06]} 32. Qxg7+ {[%clk 01:06:30]} {[%emt 00:00:17]} Kxg7 {[%clk
00:03:25]} {[%emt 00:00:02]} 33. Nxf3 {[%clk 01:06:52]} {[%emt 00:00:08]} Kf6
{[%clk 00:03:38]} {[%emt 00:00:17]} 34. Ng5 {[%clk 01:06:58]} {[%emt 00:00:23]}
Kf5 {[%clk 00:03:26]} {[%emt 00:00:41]} 35. Kg2 {[%clk 01:07:02]} {[%emt
00:00:26]} Be7 {[%clk 00:03:34]} {[%emt 00:00:23]} 36. Nh3 {[%clk 01:06:06]}
{[%emt 00:01:27]} Bf6 {[%clk 00:03:42]} {[%emt 00:00:22]} 37. Kf3 {[%clk
01:06:32]} {[%emt 00:00:03]} Bxd4 {[%clk 00:04:04]} {[%emt 00:00:09]} 38. b3
{[%clk 01:06:58]} {[%emt 00:00:04]} Nd7 {[%clk 00:03:12]} {[%emt 00:01:22]} 39.
g4+ {[%clk 01:07:23]} {[%emt 00:00:05]} Kf6 {[%clk 00:03:27]} {[%emt 00:00:15]}
40. Ke4 {[%clk 01:07:43]} {[%emt 00:00:10]} Bb6 {[%clk 00:03:04]} {[%emt
00:00:54]} 41. f4 {[%clk 01:07:53]} {[%emt 00:00:20]} Nc5+ {[%clk 00:03:08]}
{[%emt 00:00:26]} 42. Kf3 {[%clk 01:08:17]} {[%emt 00:00:05]} Nd3 {[%clk
00:03:25]} {[%emt 00:00:13]} 43. Ng5 {[%clk 01:07:31]} {[%emt 00:01:16]} Nc1
{[%clk 00:30:00]} {[%emt 00:03:55]} 44. Ne4+ {[%clk 01:37:46]} {[%emt
00:00:15]} Kg7 {[%clk 00:29:22]} {[%emt 00:01:08]} 45. f5 {[%clk 01:36:21]}
{[%emt 00:01:55]} gxf5 {[%clk 00:29:24]} {[%emt 00:00:29]} 46. gxf5 {[%clk
01:36:45]} {[%emt 00:00:05]} Bd8 {[%clk 00:28:04]} {[%emt 00:01:50]} 47. h5
{[%clk 01:35:42]} {[%emt 00:01:34]} Nd3 {[%clk 00:19:31]} {[%emt 00:09:03]} 48.
Ke3 {[%clk 01:35:45]} {[%emt 00:00:27]} Ne5 {[%clk 00:19:14]} {[%emt 00:00:47]}
49. a4 {[%clk 01:33:37]} {[%emt 00:02:38]} Nd7 {[%clk 00:15:20]} {[%emt
00:04:24]} 50. axb5 {[%clk 01:33:56]} {[%emt 00:00:11]} axb5 {[%clk 00:14:57]}
{[%emt 00:00:53]} 51. Kd3 {[%clk 01:29:11]} {[%emt 00:05:15]} Kh6 {[%clk
00:14:05]} {[%emt 00:01:22]} 52. Ng3 {[%clk 01:29:35]} {[%emt 00:00:07]} Bc7
{[%clk 00:13:48]} {[%emt 00:00:47]} 53. Ne2 {[%clk 01:30:01]} {[%emt 00:00:03]}
Be5 {[%clk 00:13:50]} {[%emt 00:00:28]} 54. Ke4 {[%clk 01:27:51]} {[%emt
00:02:40]} Bf6 {[%clk 00:12:34]} {[%emt 00:01:46]} 55. b4 {[%clk 01:27:32]}
{[%emt 00:00:50]} Kxh5 {[%clk 00:11:27]} {[%emt 00:01:37]} 0-1

[Event "Berliner Meisterschaft 2023"]
[Site "Berlin"]
[Date "2023.04.16"]
[Round "9.3"]
[White "von Herman, Ulf"]
[Black "Glek, Igor"]
[Result "1-0"]
[TimeControl "90 minutes / 40 moves + 30 minutes + 30 seconds"]
[WhiteTitle "IM"]
[BlackTitle "GM"]
[WhiteFideId "4608500"]
[BlackFideId "4100484"]
[WhiteElo "2332"]
[BlackElo "2443"]

1. c4 {[%clk 01:30:26]} {[%emt 00:00:32]} e5 {[%clk 01:28:45]} {[%emt
00:02:16]} 2. g3 {[%clk 01:27:05]} {[%emt 00:03:51]} c6 {[%clk 01:26:56]}
{[%emt 00:02:20]} 3. d4 {[%clk 01:27:24]} {[%emt 00:00:10]} e4 {[%clk
01:22:43]} {[%emt 00:04:43]} 4. Nc3 {[%clk 01:22:42]} {[%emt 00:05:13]} Nf6
{[%clk 01:07:09]} {[%emt 00:16:04]} 5. Bg5 {[%clk 01:10:22]} {[%emt 00:12:49]}
Bb4 {[%clk 01:07:30]} {[%emt 00:00:10]} 6. Qb3 {[%clk 01:10:31]} {[%emt
00:00:21]} Bxc3+ {[%clk 01:04:02]} {[%emt 00:03:59]} 7. Qxc3 {[%clk 01:10:30]}
{[%emt 00:00:31]} O-O {[%clk 01:04:24]} {[%emt 00:00:08]} 8. d5 {[%clk
00:59:33]} {[%emt 00:11:27]} cxd5 {[%clk 01:00:32]} {[%emt 00:04:23]} 9. Bxf6
{[%clk 00:59:56]} {[%emt 00:00:06]} Qxf6 {[%clk 00:53:45]} {[%emt 00:07:18]} 10.
Qxf6 {[%clk 00:54:55]} gxf6 {[%clk 00:54:12]} {[%emt 00:05:33]} 11. cxd5 {[%clk
00:54:28]} {[%emt 00:00:56]} d6 {[%clk 00:54:19]} {[%emt 00:00:24]} 12. Nh3
{[%clk 00:51:51]} {[%emt 00:03:07]} Bf5 {[%clk 00:29:47]} {[%emt 00:25:02]} 13.
Nf4 {[%clk 00:40:20]} {[%emt 00:12:01]} Rc8 {[%clk 00:30:01]} {[%emt 00:00:16]}
14. Kd2 {[%clk 00:32:36]} {[%emt 00:08:14]} e3+ {[%clk 00:21:30]} {[%emt
00:09:01]} 15. Kxe3 {[%clk 00:32:21]} {[%emt 00:00:44]} Rc2 {[%clk 00:21:59]}
{[%emt 00:00:02]} 16. Bh3 {[%clk 00:13:53]} {[%emt 00:18:57]} Bxh3 {[%clk
00:21:57]} {[%emt 00:00:33]} 17. Nxh3 {[%clk 00:14:18]} {[%emt 00:00:05]} Nd7
{[%clk 00:14:42]} {[%emt 00:07:45]} 18. Nf4 {[%clk 00:10:45]} {[%emt 00:04:03]}
Rac8 {[%clk 00:10:21]} {[%emt 00:04:52]} 19. b3 {[%clk 00:05:12]} {[%emt
00:06:02]} Ne5 {[%clk 00:05:42]} {[%emt 00:05:08]} 20. f3 {[%clk 00:04:49]}
{[%emt 00:00:53]} Ng6 {[%clk 00:04:46]} {[%emt 00:01:27]} 21. Rhe1 {[%clk
00:04:25]} {[%emt 00:00:53]} Nxf4 {[%clk 00:04:01]} {[%emt 00:01:16]} 22. gxf4
{[%clk 00:04:41]} {[%emt 00:00:14]} Rb2 {[%clk 00:02:12]} {[%emt 00:02:19]} 23.
Ke4 {[%clk 00:03:08]} {[%emt 00:02:02]} Rd2 {[%clk 00:01:19]} {[%emt 00:01:24]}
24. Rad1 {[%clk 00:03:03]} {[%emt 00:00:35]} Re8+ {[%clk 00:00:52]} {[%emt
00:00:58]} 25. Kf5 {[%clk 00:03:09]} {[%emt 00:00:24]} Rxa2 {[%clk 00:00:39]}
{[%emt 00:00:43]} 26. Kxf6 {[%clk 00:03:09]} {[%emt 00:00:30]} Kf8 {[%clk
00:00:43]} {[%emt 00:00:26]} 27. Rc1 {[%clk 00:02:42]} {[%emt 00:00:57]} Raxe2
{[%clk 00:00:56]} {[%emt 00:00:18]} 28. Rxe2 {[%clk 00:03:01]} {[%emt
00:00:11]} Rxe2 {[%clk 00:01:25]} {[%emt 00:00:01]} 29. Rc7 {[%clk 00:02:56]}
{[%emt 00:00:34]} Ke8 {[%clk 00:01:33]} {[%emt 00:00:22]} 30. Rxf7 {[%clk
00:02:47]} {[%emt 00:00:39]} Rxh2 {[%clk 00:01:42]} {[%emt 00:00:22]} 31. Rxb7
{[%clk 00:03:10]} {[%emt 00:00:07]} Rh6+ {[%clk 00:01:28]} {[%emt 00:00:43]} 32.
Kg5 {[%clk 00:03:13]} {[%emt 00:00:26]} Rh3 {[%clk 00:01:16]} {[%emt 00:00:42]}
33. Rxa7 {[%clk 00:03:15]} {[%emt 00:00:29]} Rxf3 {[%clk 00:01:37]} {[%emt
00:00:09]} 34. b4 {[%clk 00:03:33]} {[%emt 00:00:12]} Rd3 {[%clk 00:00:53]}
{[%emt 00:01:15]} 35. Kf5 {[%clk 00:03:47]} {[%emt 00:00:16]} Rd4 {[%clk
00:00:34]} {[%emt 00:00:50]} 36. b5 {[%clk 00:03:33]} {[%emt 00:00:44]} Kd8
{[%clk 00:00:49]} {[%emt 00:00:15]} 37. Ke6 {[%clk 00:03:35]} {[%emt 00:00:29]}
Rxf4 {[%clk 00:01:04]} {[%emt 00:00:15]} 38. Rxh7 {[%clk 00:03:28]} {[%emt
00:00:36]} Kc8 {[%clk 00:01:26]} {[%emt 00:00:09]} 39. b6 {[%clk 00:03:27]}
{[%emt 00:00:30]} Rb4 {[%clk 00:01:33]} {[%emt 00:00:24]} 40. b7+ {[%clk
00:03:18]} {[%emt 00:00:39]} Kb8 {[%clk 00:02:02]} {[%emt 00:00:01]} 41. Kxd6
{[%clk 00:02:30]} {[%emt 00:01:19]} Rb6+ {[%clk 00:02:28]} {[%emt 00:00:04]} 42.
Kc5 {[%clk 00:01:04]} {[%emt 00:01:56]} Rb1 {[%clk 00:02:43]} {[%emt 00:00:15]}
43. d6 {[%clk 00:25:02]} {[%emt 00:06:32]} Rc1+ {[%clk 00:33:00]} {[%emt
00:00:13]} 44. Kd5 {[%clk 00:25:24]} {[%emt 00:00:07]} Rd1+ {[%clk 00:33:16]}
{[%emt 00:00:14]} 45. Ke5 {[%clk 00:25:48]} {[%emt 00:00:05]} Re1+ {[%clk
00:31:59]} {[%emt 00:01:47]} 46. Kf4 {[%clk 00:25:42]} {[%emt 00:00:36]} Rf1+
{[%clk 00:31:30]} {[%emt 00:01:00]} 47. Ke5 {[%clk 00:25:22]} {[%emt 00:00:49]}
Re1+ {[%clk 00:31:55]} {[%emt 00:00:05]} 48. Kf6 {[%clk 00:25:45]} {[%emt
00:00:07]} Rf1+ {[%clk 00:32:13]} {[%emt 00:00:12]} 49. Ke6 {[%clk 00:26:08]}
{[%emt 00:00:07]} Re1+ {[%clk 00:32:33]} {[%emt 00:00:10]} 50. Kd7 {[%clk
00:24:58]} {[%emt 00:01:40]} Rg1 {[%clk 00:31:47]} {[%emt 00:01:16]} 51. Rh5
{[%clk 00:20:47]} {[%emt 00:04:40]} Rb1 {[%clk 00:29:34]} {[%emt 00:02:44]} 52.
Kc6 {[%clk 00:18:59]} {[%emt 00:02:18]} Rb6+ {[%clk 00:29:20]} {[%emt
00:00:44]} 53. Kc5 {[%clk 00:19:08]} {[%emt 00:00:20]} Rb1 {[%clk 00:29:08]}
{[%emt 00:00:42]} 54. Rh8+ {[%clk 00:19:11]} {[%emt 00:00:27]} Kxb7 {[%clk
00:29:32]} {[%emt 00:00:07]} 55. d7 {[%clk 00:19:36]} {[%emt 00:00:05]} Rc1+
{[%clk 00:29:57]} {[%emt 00:00:04]} 56. Kb4 {[%clk 00:19:59]} {[%emt 00:00:06]}
1-0

[Event "Berliner Meisterschaft 2023"]
[Site "Berlin"]
[Date "2023.04.16"]
[Round "9.4"]
[White "Hesse, Henrik"]
[Black "Lagunow, Raphael"]
[Result "0-1"]
[TimeControl "90 minutes / 40 moves + 30 minutes + 30 seconds"]
[BlackTitle "IM"]
[WhiteFideId "12956465"]
[BlackFideId "246552644"]
[WhiteElo "2197"]
[BlackElo "2410"]

1. c4 {[%clk 01:30:57]} {[%emt 00:00:02]} e5 {[%clk 01:30:49]} {[%emt
00:00:06]} 2. g3 {[%clk 01:31:17]} {[%emt 00:00:15]} c6 {[%clk 01:31:14]}
{[%emt 00:00:05]} 3. d4 {[%clk 01:29:43]} {[%emt 00:02:04]} e4 {[%clk
01:31:37]} {[%emt 00:00:07]} 4. d5 {[%clk 01:30:09]} {[%emt 00:00:04]} Bb4+
{[%clk 01:31:51]} {[%emt 00:00:16]} 5. Bd2 {[%clk 01:30:32]} {[%emt 00:00:07]}
Qe7 {[%clk 01:32:09]} {[%emt 00:00:12]} 6. Bxb4 {[%clk 01:25:17]} {[%emt
00:05:46]} Qxb4+ {[%clk 01:32:32]} {[%emt 00:00:07]} 7. Qd2 {[%clk 01:25:45]}
{[%emt 00:00:02]} Qxc4 {[%clk 01:17:58]} {[%emt 00:15:03]} 8. Nc3 {[%clk
01:25:33]} {[%emt 00:00:42]} Nf6 {[%clk 01:17:11]} {[%emt 00:01:17]} 9. Rc1
{[%clk 01:25:42]} {[%emt 00:00:21]} O-O {[%clk 01:15:37]} {[%emt 00:02:05]} 10.
e3 {[%clk 01:24:45]} {[%emt 00:01:26]} Qb4 {[%clk 01:14:52]} {[%emt 00:01:15]}
11. a3 {[%clk 01:23:50]} {[%emt 00:01:26]} Qd6 {[%clk 01:05:22]} {[%emt
00:09:59]} 12. Bg2 {[%clk 01:16:51]} {[%emt 00:07:29]} Re8 {[%clk 00:58:02]}
{[%emt 00:07:51]} 13. Nge2 {[%clk 01:14:55]} {[%emt 00:02:26]} Na6 {[%clk
00:49:07]} {[%emt 00:09:25]} 14. O-O {[%clk 01:00:29]} {[%emt 00:14:56]} Nc7
{[%clk 00:42:43]} {[%emt 00:06:54]} 15. Rfd1 {[%clk 01:00:43]} {[%emt
00:00:16]} Qe5 {[%clk 00:39:30]} {[%emt 00:03:44]} 16. d6 {[%clk 00:48:57]}
{[%emt 00:12:16]} Ne6 {[%clk 00:34:22]} {[%emt 00:05:38]} 17. Nf4 {[%clk
00:35:12]} {[%emt 00:14:14]} b6 {[%clk 00:30:28]} {[%emt 00:04:24]} 18. Qc2
{[%clk 00:28:59]} {[%emt 00:06:43]} Ng5 {[%clk 00:29:23]} {[%emt 00:01:34]} 19.
h4 {[%clk 00:22:52]} {[%emt 00:06:37]} Nf3+ {[%clk 00:29:29]} {[%emt 00:00:23]}
20. Bxf3 {[%clk 00:21:26]} {[%emt 00:01:56]} exf3 {[%clk 00:29:54]} {[%emt
00:00:06]} 21. e4 {[%clk 00:17:07]} {[%emt 00:04:49]} Bb7 {[%clk 00:10:37]}
{[%emt 00:19:48]} 22. Nd3 {[%clk 00:13:32]} {[%emt 00:04:05]} Qe6 {[%clk
00:04:12]} {[%emt 00:06:55]} 23. e5 {[%clk 00:13:48]} {[%emt 00:00:14]} Ng4
{[%clk 00:04:36]} {[%emt 00:00:06]} 24. Re1 {[%clk 00:11:32]} {[%emt 00:02:46]}
Qf5 {[%clk 00:04:50]} {[%emt 00:00:15]} 25. Re4 {[%clk 00:07:15]} {[%emt
00:04:46]} c5 {[%clk 00:01:07]} {[%emt 00:04:14]} 26. Rf4 {[%clk 00:06:32]}
{[%emt 00:01:14]} Qg6 {[%clk 00:01:32]} {[%emt 00:00:04]} 27. Nb5 {[%clk
00:01:02]} {[%emt 00:06:01]} Nxe5 {[%clk 00:01:57]} {[%emt 00:00:06]} 28. Nxe5
{[%clk 00:01:28]} {[%emt 00:00:04]} Qxc2 {[%clk 00:02:14]} 29. Rxc2 {[%clk
00:01:54]} {[%emt 00:00:16]} Rxe5 {[%clk 00:02:40]} {[%emt 00:00:03]} 30. Nc7
{[%clk 00:02:22]} {[%emt 00:00:03]} Rf8 {[%clk 00:02:06]} {[%emt 00:01:04]} 31.
b4 {[%clk 00:02:48]} {[%emt 00:00:04]} Re1+ {[%clk 00:01:19]} {[%emt 00:01:16]}
32. Kh2 {[%clk 00:03:14]} {[%emt 00:00:03]} Be4 {[%clk 00:01:33]} {[%emt
00:00:16]} 33. Rc3 {[%clk 00:02:28]} {[%emt 00:01:17]} f5 {[%clk 00:01:44]}
{[%emt 00:00:19]} 34. bxc5 {[%clk 00:02:54]} {[%emt 00:00:03]} bxc5 {[%clk
00:01:44]} {[%emt 00:00:30]} 35. Rxc5 {[%clk 00:02:52]} {[%emt 00:00:32]} Rf1
{[%clk 00:01:39]} {[%emt 00:00:35]} 36. Nd5 {[%clk 00:03:10]} {[%emt 00:00:13]}
Rxf2+ {[%clk 00:01:38]} {[%emt 00:00:30]} 37. Kh3 {[%clk 00:03:37]} {[%emt
00:00:03]} g6 {[%clk 00:01:17]} {[%emt 00:00:51]} 38. Ne7+ {[%clk 00:03:57]}
{[%emt 00:00:10]} Kf7 {[%clk 00:01:30]} {[%emt 00:00:17]} 39. Re5 {[%clk
00:04:12]} {[%emt 00:00:14]} Bd3 {[%clk 00:00:40]} {[%emt 00:01:21]} 40. g4
{[%clk 00:04:17]} {[%emt 00:00:25]} Kf6 {[%clk 00:00:35]} {[%emt 00:00:35]} 41.
Re3 {[%clk 00:03:41]} {[%emt 00:01:06]} Bc2 {[%clk 00:13:59]} {[%emt 00:17:06]}
42. g5+ {[%clk 00:11:41]} {[%emt 00:22:30]} Kg7 {[%clk 00:14:06]} {[%emt
00:00:22]} 43. Rexf3 {[%clk 00:10:31]} {[%emt 00:01:41]} Rxf3+ {[%clk
00:10:43]} {[%emt 00:03:53]} 44. Rxf3 {[%clk 00:10:55]} {[%emt 00:00:06]} f4
{[%clk 00:03:06]} {[%emt 00:08:07]} 45. Rf2 {[%clk 00:03:37]} {[%emt 00:07:47]}
Be4 {[%clk 00:03:31]} {[%emt 00:00:04]} 46. Kg4 {[%clk 00:03:43]} {[%emt
00:00:24]} f3 {[%clk 00:03:55]} {[%emt 00:00:06]} 47. Kg3 {[%clk 00:04:12]}
{[%emt 00:00:01]} Ba8 {[%clk 00:03:57]} {[%emt 00:00:28]} 48. Rc2 {[%clk
00:02:29]} {[%emt 00:02:14]} Kf7 {[%clk 00:03:27]} {[%emt 00:01:00]} 49. Nc8
{[%clk 00:02:10]} {[%emt 00:00:48]} Ke6 {[%clk 00:02:17]} {[%emt 00:01:40]} 50.
Nxa7 {[%clk 00:02:06]} {[%emt 00:00:35]} Kxd6 {[%clk 00:02:35]} {[%emt
00:00:11]} 51. Nc8+ {[%clk 00:01:34]} {[%emt 00:01:02]} Ke5 {[%clk 00:00:40]}
{[%emt 00:02:25]} 52. Nb6 {[%clk 00:01:49]} {[%emt 00:00:15]} Bc6 {[%clk
00:01:06]} {[%emt 00:00:03]} 53. Kf2 {[%clk 00:01:02]} {[%emt 00:01:17]} Rf4
{[%clk 00:01:11]} {[%emt 00:00:26]} 54. Rc5+ {[%clk 00:01:10]} {[%emt
00:00:22]} Kd6 {[%clk 00:01:22]} {[%emt 00:00:18]} 55. Rc4 {[%clk 00:01:31]}
{[%emt 00:00:08]} Rf5 {[%clk 00:01:23]} {[%emt 00:00:29]} 56. Rc3 {[%clk
00:01:03]} {[%emt 00:00:58]} Ke6 {[%clk 00:01:22]} {[%emt 00:00:31]} 57. a4
{[%clk 00:01:01]} {[%emt 00:00:33]} Re5 {[%clk 00:00:34]} {[%emt 00:01:18]} 58.
Re3 {[%clk 00:00:39]} {[%emt 00:00:52]} Rxe3 {[%clk 00:00:59]} {[%emt
00:00:04]} 59. Kxe3 {[%clk 00:01:05]} {[%emt 00:00:05]} Kf5 {[%clk 00:01:26]}
{[%emt 00:00:03]} 60. a5 {[%clk 00:01:27]} {[%emt 00:00:08]} Kg4 {[%clk
00:01:48]} {[%emt 00:00:08]} 61. Kf2 {[%clk 00:01:47]} {[%emt 00:00:10]} Kxh4
{[%clk 00:01:57]} {[%emt 00:00:21]} 62. a6 {[%clk 00:02:14]} {[%emt 00:00:04]}
Kxg5 {[%clk 00:02:08]} {[%emt 00:00:18]} 63. a7 {[%clk 00:02:38]} {[%emt
00:00:07]} Kf4 {[%clk 00:02:26]} {[%emt 00:00:12]} 64. Nxd7 {[%clk 00:02:54]}
{[%emt 00:00:14]} g5 {[%clk 00:02:21]} {[%emt 00:00:34]} 65. Nc5 {[%clk
00:01:59]} {[%emt 00:01:25]} g4 {[%clk 00:02:39]} {[%emt 00:00:12]} 66. Ne6+
{[%clk 00:02:13]} {[%emt 00:00:17]} Ke5 {[%clk 00:02:57]} {[%emt 00:00:11]} 67.
Ng7 {[%clk 00:01:31]} {[%emt 00:01:12]} Kf6 {[%clk 00:03:00]} {[%emt 00:00:27]}
68. Ne8+ {[%clk 00:01:21]} {[%emt 00:00:40]} Kg5 {[%clk 00:02:55]} {[%emt
00:00:34]} 69. Ng7 {[%clk 00:01:44]} {[%emt 00:00:07]} h5 {[%clk 00:02:45]}
{[%emt 00:00:40]} 70. Ne6+ {[%clk 00:02:12]} {[%emt 00:00:03]} Kf6 {[%clk
00:02:34]} {[%emt 00:00:41]} 71. Nd4 {[%clk 00:02:22]} {[%emt 00:00:20]} Bb7
{[%clk 00:02:54]} {[%emt 00:00:10]} 72. Nb5 {[%clk 00:01:19]} {[%emt 00:01:34]}
h4 {[%clk 00:03:13]} {[%emt 00:00:10]} 73. Nd6 {[%clk 00:01:39]} {[%emt
00:00:10]} g3+ {[%clk 00:02:45]} {[%emt 00:00:57]} 74. Ke3 {[%clk 00:02:09]}
Bc6 {[%clk 00:02:53]} {[%emt 00:00:22]} 75. Ne4+ {[%clk 00:02:19]} {[%emt
00:00:20]} Ke5 {[%clk 00:02:56]} {[%emt 00:00:26]} 76. Nd2 {[%clk 00:01:20]}
{[%emt 00:01:29]} f2 {[%clk 00:03:20]} {[%emt 00:00:07]} 77. Nf1 {[%clk
00:00:46]} {[%emt 00:01:04]} g2 {[%clk 00:03:06]} {[%emt 00:00:44]} 78. Kxf2
{[%clk 00:01:12]} {[%emt 00:00:03]} gxf1=Q+ {[%clk 00:03:29]} {[%emt 00:00:06]}
79. Kxf1 {[%clk 00:01:38]} {[%emt 00:00:04]} Kf4 {[%clk 00:03:55]} {[%emt
00:00:04]} 80. Kf2 {[%clk 00:02:04]} {[%emt 00:00:04]} h3 {[%clk 00:04:18]}
{[%emt 00:00:07]} 81. Kg1 {[%clk 00:02:31]} {[%emt 00:00:03]} Kg3 {[%clk
00:04:43]} {[%emt 00:00:04]} 82. Kf1 {[%clk 00:02:47]} {[%emt 00:00:15]} h2
{[%clk 00:05:08]} {[%emt 00:00:05]} 0-1